Cogmind - Beta 15 @@@ ROGUE MODE // 2025.09.24 @ 16:50:59 Player: Miguell Result: Destroyed by B-75 Beast with Heavy Machine Gun Performance ------------- Evolutions (4) 2000 Regions Visited (5) 1000 Robots Destroyed (120) 600 Value Destroyed (4421) 4421 Prototype IDs (3) 60 Alien Tech Used (0) 0 Bonus (0) 0 TOTAL SCORE: 8081 Bonus ------- None Cogmind --------- Core Integrity 0/850 Matter 412/550 Energy 85/100 System Corruption 2% Temperature Critical (513) Movement Core (1500) Ox29 Location -6/Factory Parts ------- > --- POWER (2) -------- (None) > --- PROPULSION (4) --- (None) > --- UTILITY (5) ------ Improved Cryofiber Web Huge Storage Unit Matter Compressor Hacking Suite > --- WEAPON (4) ------- Heavy Pick > --- INVENTORY (25) --- Fission Core Fission Core Carbon-fiber Leg Improved Heat Sink IFF Parser Particle Charger Particle Charger Kinecellerator Improved Propulsion Shielding Faulty Improved Lightning Gun Gatling Laser Autogun Autogun Gauss Rifle Hypervelocity Gauss Rifle Improved Datajack Greatsword Peak State ------------ > --- POWER ------------ Light Nuclear Core Fusion Compressor > --- PROPULSION ------- Carbon-fiber Leg Carbon-fiber Leg Carbon-fiber Leg Carbon-fiber Leg > --- UTILITY ---------- Improved Heat Sink Huge Storage Unit Matter Compressor Improved Terrain Scanner Hacking Suite > --- WEAPON ----------- Thermic Laser Plasma Cannon Mass Driver Mass Driver > --- INVENTORY -------- Light Nuclear Core Aluminum Leg Aluminum Leg Aluminum Leg Improved Aluminum Leg Carbon-fiber Leg Improved Heat Sink Improved Heat Sink Particle Charger Particle Charger Kinecellerator Improved Propulsion Shielding Improved Lightning Gun Gatling Laser Advanced Beam Cannon Gauss Rifle Gauss Rifle Gauss Rifle Precision Rocket Launcher [Rating: 62] Favorites ----------- Power Light Nuclear Core Engine Deuterium Engine Power Core Light Nuclear Core Propulsion Aluminum Leg Treads Advanced Treads Leg Aluminum Leg Wheel Wheel Hover Unit Gravmag System Utility Hacking Suite Device Improved Heat Sink Storage Huge Storage Unit Processor Improved Targeting Computer Hackware Hacking Suite Protection Improved Propulsion Shielding Weapon Gauss Rifle Energy Gun Beam Rifle Energy Cannon Ion Cannon Ballistic Gun Gauss Rifle Ballistic Cannon Mass Driver Launcher Rocket Launcher Impact Weapon Great Maul Slashing Weapon Greatsword Piercing Weapon Heavy Pick Special Melee Weapon Improved Datajack Build | -11 -10 -9 -8 -7 -6 ------- Run | Yrd Mat Mat Mat Fac Fac Slots Evolved 8 | . . 2 2 2 2 Power 1 | . . . . 1 . Propulsion 2 | . . 1 . . 1 Utility 3 | . . . 1 1 1 Weapon 2 | . . 1 1 . . Parts Attached 132 | 8 11 10 23 37 43 Power 21 | 1 1 2 1 6 10 Engine 8 | 1 1 1 1 4 . Core 13 | . . 1 . 2 10 Reactor . | . . . . . . Propulsion 41 | 4 3 7 4 12 11 Treads 1 | . . . 1 . . Leg 32 | 2 3 7 . 9 11 Wheel 2 | 2 . . . . . Hover 6 | . . . 3 3 . Flight . | . . . . . . Utility 23 | 1 4 . 7 4 7 Device 11 | 1 2 . 3 2 3 Storage 4 | . 1 . 1 1 1 Processor 5 | . 1 . 2 1 1 Hackware 2 | . . . 1 . 1 Protection 1 | . . . . . 1 Artifact . | . . . . . . Weapon 47 | 2 3 1 11 15 15 Energy Gun 9 | . . 1 2 2 4 Energy Cannon 6 | . . . 2 3 1 Ballistic Gun 15 | 2 2 . 1 6 4 Ballistic Cannon 4 | . 1 . . 1 2 Launcher 8 | . . . 4 3 1 Special Weapon . | . . . . . . Impact Weapon 2 | . . . 2 . . Slashing Weapon 1 | . . . . . 1 Piercing Weapon 1 | . . . . . 1 Special Melee Weapon 1 | . . . . . 1 Unidentified Prototypes 3 | . . . 1 . 2 Corrupted Parts 2 | . 1 . . 1 . System Corruption 16 | . 10 . . 6 . Parts Lost 70 | . . . 11 23 36 Power 12 | . . . . 3 9 Propulsion 23 | . . . 3 6 14 Utility 5 | . . . 1 2 2 Weapon 30 | . . . 7 12 11 Highest Loss Streak 17 | . . . 6 3 17 To Critical Strikes . | . . . . . . Average Backups 15 | 2 5 9 8 16 22 Power 2 | . . 1 2 3 2 Propulsion 2 | 1 1 . . 2 5 Utility 4 | . 1 4 3 5 6 Weapon 4 | . 1 3 3 4 7 Tool/Special . | . . . . . . Unused Backups 29 | . 2 6 3 3 15 Power 4 | . . 1 1 . 2 Propulsion 2 | . . . . 1 1 Utility 11 | . . 2 2 1 6 Weapon 8 | . 2 2 . 1 3 Tool/Special 4 | . . 1 . . 3 Average Slot Usage (%) 96 | . 99 99 92 95 97 Engine 5 | . 14 2 4 9 . Core 6 | . . 8 4 3 11 Leg 20 | . 28 32 17 9 25 Hover 4 | . . . 4 11 . Device 11 | . 12 11 5 12 11 Storage 9 | . 4 11 9 7 11 Processor 3 | . 10 . 7 2 1 Hackware 5 | . . . 4 7 6 Energy Gun 6 | . . 11 12 5 3 Energy Cannon 5 | . . . 7 7 5 Ballistic Gun 11 | . 20 22 8 7 10 Ballistic Cannon 1 | . 7 . . . 1 Launcher 1 | . . . 1 4 . Impact Weapon 1 | . . . 2 3 . Peak Build Rating 62 | 6 10 16 34 49 62 Average Rating 37 | 3 7 14 23 43 54 On Entrance 19 | . 6 10 16 34 49 Naked Turns . | . . . . . . Heaviest Build 126 | 6 20 25 38 124 126 Greatest Support 60 | 20 20 30 36 55 60 Greatest Overweight (x) 6 | . . 1 2 6 5 Average Overweight (x) 1 | . . . . 2 1 Largest Inventory Capacity 25 | 5 10 10 10 25 25 Average Capacity 19 | 5 6 10 10 24 25 Most Carried 25 | 4 10 10 10 25 25 Average Carried 15 | 2 5 9 8 16 23 Final Capacity 25 | 5 10 10 10 25 25 Final Carried 25 | 3 10 10 9 25 18 Class Distribution -------------------- 33% | Gunner 24% | Scavenger-Skirmisher 23% | Scavenger-Gunner 11% | Mutant 3% | Skirmisher Dominant Class ---------------- Mutant | -10/Materials Scavenger-Skirmisher | -9/Materials Scavenger-Gunner | -8/Materials Gunner | -7/Factory Scavenger-Gunner | -6/Factory Resources | -11 -10 -9 -8 -7 -6 ----------- Run | Yrd Mat Mat Mat Fac Fac Matter Collected 3419 | 284 150 514 364 924 1183 Remotely . | . . . . . . Salvage Created 4670 | 45 206 794 774 1366 1485 Parts 256 | 2 14 46 45 74 75 Haulers Intercepted 1 | . . . . . 1 Recyclers Shooed . | . . . . . . Parts Field Recycled . | . . . . . . Retrieved Matter . | . . . . . . Parts Self-Destructed . | . . . . . . Prevented . | . . . . . . Kills | -11 -10 -9 -8 -7 -6 ------- Run | Yrd Mat Mat Mat Fac Fac Combat Hostiles Destroyed 97 | 1 6 15 18 27 30 Guns 65 | 1 2 15 12 20 15 Cannons 27 | . 4 . 6 5 12 AOE 2 | . . . . 2 . Classes Destroyed 14 | 1 2 3 5 1 2 Worker 6 | . . 1 . 2 3 Builder 3 | . . . 1 . 2 Hauler 1 | . . . . . 1 Recycler 4 | . . 1 1 1 1 Mechanic 1 | . . . . . 1 Operator 1 | . . . 1 . . Watcher 7 | . 1 1 1 2 2 Swarmer 26 | . 2 . 7 3 14 Grunt 46 | 1 4 13 6 13 9 Brawler 1 | . . . 1 . . Sentry 9 | . . 2 2 2 3 Hunter 4 | . . . 1 3 . Programmer 10 | . . . . 6 4 Heavy 1 | . . . 1 . . Best Kill Streak 9 | 1 2 4 9 4 7 Combat Bots Only 8 | 1 2 3 8 4 6 Max Kills in Single Turn 4 | 1 1 2 3 3 4 Gunslinging 1 | . . 1 . 1 . Exploded 2 | . . . . 2 . Melee . | . . . . . . Uniques/NPCs Destroyed . | . . . . . . Combat | -11 -10 -9 -8 -7 -6 -------- Run | Yrd Mat Mat Mat Fac Fac Hostile Shots Fired 795 | 2 30 54 95 268 346 Missed 228 | . 9 20 28 68 103 Hits 567 | 2 21 34 67 200 243 Projectile 567 | 2 21 34 67 200 243 AOE 6 | . . . . . 6 Critical Strikes 13 | . . . 1 10 2 Part Disruptions 3 | . . . . 3 . Damage Taken 9999 | 24 248 404 1285 3400 4638 Core 1840 | . 61 27 231 665 856 Absorbed by Shields . | . . . . . . Redirected to Shielding 117 | . . . . . 117 Regen/Repaired (Parts) 109 | . . . 109 . . Core Remaining (%) 66 | 100 75 93 58 5 . Volleys Fired 241 | 2 19 32 50 68 70 Largest 4 | 2 2 3 4 4 4 Hottest 259 | 40 50 102 184 208 259 Shots Fired 692 | 4 37 96 128 216 211 Gun 486 | 4 26 96 100 136 124 Cannon 185 | . 11 . 20 71 83 Launcher 21 | . . . 8 9 4 Special . | . . . . . . Kinetic 373 | 4 37 64 52 100 116 Thermal 260 | . . 32 59 78 91 Explosive 14 | . . . 8 2 4 Electromagnetic 45 | . . . 9 36 . Robot Hit Streak 18 | 3 18 14 13 17 13 Robot Miss Streak 8 | . 3 2 5 5 8 Penetration Max 1 | . . . . 1 1 Secondary Targets 5 | . . 1 1 3 . Max Gunslinging Chain 1 | . . 1 1 1 . Shots Hit Robots 439 | 3 26 56 81 131 142 Core Hits 257 | 2 10 27 64 70 84 Critical Kills 2 | . . . . 1 1 Critical Parts Destroyed 4 | . 2 1 . 1 . Critical Strikes 13 | . 3 1 . 4 5 Burn 2 | . . . . . 2 Meltdown 1 | . . . . . 1 Destroy 6 | . 2 1 . 2 1 Blast 3 | . 1 . . 1 1 Corrupt 1 | . . . . 1 . Melee Attacks 7 | . . . . . 7 Impact . | . . . . . . Slashing . | . . . . . . Piercing . | . . . . . . Sneak Attacks 7 | . . . . . 7 Combat Hostiles . | . . . . . . Follow-up Attacks . | . . . . . . Damage Inflicted 9578 | 26 303 855 1513 3089 3792 Guns 5475 | 26 139 855 1064 1837 1554 Cannons 2928 | . 164 . 206 927 1631 Explosions 1175 | . . . 243 325 607 Melee . | . . . . . . Ramming . | . . . . . . Kinetic 4761 | 26 303 570 498 1590 1774 Thermal 3671 | . . 285 636 983 1767 Explosive 496 | . . . 243 68 185 Electromagnetic 650 | . . . 136 448 66 Impact . | . . . . . . Slashing . | . . . . . . Piercing . | . . . . . . Highest Corruption 15 | . 10 1 2 15 2 Average Corruption 5 | . 10 1 2 9 1 Corruption Purged . | . . . . . . Corruption Blocked . | . . . . . . Effects 116 | . 9 3 8 89 7 Message Errors 28 | . 3 1 1 21 2 Matter Fused 24 | . . 1 3 19 1 Heat Flow Errors 13 | . 1 1 1 10 . Energy Discharges 11 | . 1 . . 8 2 Parts Fused 1 | . . . . 1 . Data Loss (minor) 16 | . 2 . 2 10 2 Data Loss (major) 5 | . . . 1 4 . Misfires 7 | . . . . 7 . Alerts 4 | . 1 . . 3 . Weapon Failures 7 | . 1 . . 6 . Overload Shots . | . . . . . . Overflow Damage 275 | . 5 . 7 101 162 Projectiles 68 | . 5 . 3 3 57 Explosions 207 | . . . 4 98 105 Melee . | . . . . . . Knockbacks 10 | . 3 . . 3 4 Impact . | . . . . . . Kinetic 9 | . 3 . . 3 3 Secondary 1 | . . . . . 1 Self-Inflicted Damage 1186 | . 43 . 80 454 609 Shots 23 | . 1 . 3 11 8 Rammed . | . . . . . . Targets Rammed . | . . . . . . Kicked . | . . . . . . Crushed . | . . . . . . Highest Temperature 685 | 6 123 264 420 601 685 Average Temperature 141 | 6 45 74 162 126 193 Received Heat Transfer 2169 | 12 69 222 261 690 915 Effects 44 | . . . 6 17 21 Shutdowns 12 | . . . . 5 7 Energy Bleed 1 | . . . . . 1 Interference 16 | . . . 6 2 8 Matter Decay 2 | . . . . 1 1 Short Circuit 1 | . . . . 1 . Damage (minor) 3 | . . . . 1 2 Damage (major) 8 | . . . . 6 2 Damage (core) 1 | . . . . 1 . Siege Activations . | . . . . . . Martial Activations . | . . . . . . Shielding Activations . | . . . . . . Robots Disrupted . | . . . . . . Combat Hostiles . | . . . . . . Robots Corrupted 1 | . . . . . 1 Combat Hostiles 1 | . . . . . 1 Parts Fried . | . . . . . . Impact Corruptions 1 | . . . . . 1 Robots Melted 2 | . . . . . 2 Combat Hostiles 2 | . . . . . 2 Parts Melted 12 | . . 1 . 2 9 Heat Transferred 6800 | . . 740 1202 1479 3379 Parts Sabotaged . | . . . . . . Parts Stolen . | . . . . . . Parts Stripped . | . . . . . . Power Chain Reactions 3 | . . . . 3 . Alert | -11 -10 -9 -8 -7 -6 ------- Run | Yrd Mat Mat Mat Fac Fac Maximum Alert Level 1 | . . . . 1 1 Low Security (%) 72 | 100 100 100 100 47 70 Level 1 27 | . . . . 52 29 Level 2 . | . . . . . . Level 3 . | . . . . . . Level 4 . | . . . . . . Level 5 . | . . . . . . High Security . | . . . . . . Max Security . | . . . . . . Peak Influence 369 | 20 129 194 148 336 369 Initial 140 | . 6 27 17 . 140 Average 130 | 2 40 50 68 161 178 Influence Increases 3292 | 20 229 429 526 1022 1066 Destroy 0b10 Robot/C 1940 | 20 120 300 360 540 600 Destroy 0b10 Robot/NC 115 | . 5 15 20 25 50 Destroy Leader 486 | . 32 82 92 164 116 Successful Hack 119 | . 11 14 2 50 42 Disable Machine 345 | . 15 15 15 150 150 Destroy Structure 242 | . 1 3 37 93 108 Lose Combat Pursuer 45 | . 45 . . . . Influence Decreases 3273 | 10 174 451 569 734 1335 Entered New Map 216 | . 4 38 26 . 148 Time Decay 1927 | 10 170 263 443 364 677 Lost Part 680 | . . . 100 220 360 Purge Threat 450 | . . 150 . 150 150 Squads Dispatched 31 | . 1 5 3 14 8 Investigation 10 | . 1 2 . 6 1 Extermination 9 | . . . . 5 4 Reinforcement 12 | . . 3 3 3 3 Assault . | . . . . . . Garrison . | . . . . . . Intercept . | . . . . . . Searches Triggered . | . . . . . . Construction Impeded 1 | . . . . . 1 Haulers Reinforced . | . . . . . . Active Scanning Responses . | . . . . . . Cargo Convoy Interrupts . | . . . . . . Stealth | -11 -10 -9 -8 -7 -6 --------- Run | Yrd Mat Mat Mat Fac Fac Distress Signals 6 | . 1 1 1 . 3 Communications Jammed . | . . . . . . Distress Signals . | . . . . . . Times Spotted 140 | 1 11 20 24 37 47 Peak Tracking Total 6 | 1 4 5 6 4 6 Tactical Retreats 2 | . 2 . . . . Traps | -11 -10 -9 -8 -7 -6 ------- Run | Yrd Mat Mat Mat Fac Fac Traps Triggered 9 | . 1 1 1 2 4 Indirectly 1 | . . . . . 1 Trap Hack Attempts . | . . . . . . Triggered . | . . . . . . Disarmed . | . . . . . . Reprogrammed 6 | . . . . 6 . Reused . | . . . . . . Traps Extracted . | . . . . . . Installed . | . . . . . . Triggered . | . . . . . . Machines | -11 -10 -9 -8 -7 -6 ---------- Run | Yrd Mat Mat Mat Fac Fac Machines Disabled 23 | . 1 1 1 10 10 Max in Single Turn 4 | . 1 1 1 4 4 Machines Repaired . | . . . . . . Machines Dismantled . | . . . . . . Machines Sabotaged . | . . . . . . Overloaded Fab Kills . | . . . . . . Hacking | -11 -10 -9 -8 -7 -6 --------- Run | Yrd Mat Mat Mat Fac Fac Machines Accessed 23 | . 5 3 1 8 6 Terminals 17 | . 4 2 . 7 4 Fabricators 2 | . . . . . 2 Repair Stations 1 | . . . 1 . . Recycling Units 1 | . 1 . . . . Scanalyzers 2 | . . 1 . 1 . Garrison Access . | . . . . . . Total Hacks 50 | . 9 7 4 20 10 Successful 25 | . 4 3 2 8 8 Failed 25 | . 5 4 2 12 2 Catastrophic 6 | . 1 . . 5 . Database Lockouts . | . . . . . . Manual 17 | . 3 2 2 8 2 Terminals 36 | . 8 6 . 16 6 Fabricators 4 | . . . . . 4 Repair Stations 4 | . . . 4 . . Recycling Units 1 | . 1 . . . . Scanalyzers 5 | . . 1 . 4 . Garrison Access . | . . . . . . Terminal Hacks 19 | . 4 3 . 7 5 Record 3 | . 1 . . 1 1 Open DSF 3 | . . . . 1 2 Alert Level 2 | . 1 1 . . . Unreport Threat 3 | . . 1 . 1 1 Locate Traps 3 | . 1 . . 2 . Reprogram Traps 1 | . . . . 1 . Dispatch Records 1 | . . . . 1 . Hauler Manifests 1 | . . 1 . . . Zone Layout 2 | . 1 . . . 1 Fabricator Hacks 3 | . . . . . 3 Network Status 1 | . . . . . 1 Build 2 | . . . . . 2 Repair Station Hacks 2 | . . . 2 . . Scan Component 1 | . . . 1 . . Repair 1 | . . . 1 . . Recycling Unit Hacks . | . . . . . . Scanalyzer 1 | . . . . 1 . Insert Component 1 | . . . . 1 . Garrison Access Hacks . | . . . . . . Unauthorized Hacks . | . . . . . . Terminals . | . . . . . . Fabricators . | . . . . . . Repair Stations . | . . . . . . Recycling Units . | . . . . . . Scanalyzers . | . . . . . . Garrison Access . | . . . . . . Data Cores Recovered . | . . . . . . Used . | . . . . . . Hacking Detections 15 | . 2 2 1 7 3 Full Trace Events 8 | . . 1 . 6 1 Feedback Events 3 | . . 1 . 2 . Corruption 3 | . . 1 . 2 . Feedback Blocked . | . . . . . . Robot Schematics Acquired . | . . . . . . Robots Built . | . . . . . . Authchips . | . . . . . . Time . | . . . . . . Total Robot Build Rating . | . . . . . . Part Schematics Acquired . | . . . . . . Parts Built 4 | . . . . . 4 Authchips . | . . . . . . Time 106 | . . . . . 106 Total Part Build Rating 24 | . . . . . 24 Parts Repaired 1 | . . . 1 . . Time 38 | . . . 38 . . Parts Recycled . | . . . . . . Recycled Matter . | . . . . . . Retrieved Matter . | . . . . . . Retrieved Components . | . . . . . . Parts Scanalyzed 1 | . . . . 1 . Part Schematics Acquired . | . . . . . . Parts Damaged . | . . . . . . Bothacking | -11 -10 -9 -8 -7 -6 ------------ Run | Yrd Mat Mat Mat Fac Fac Used RIF Installer . | . . . . . . Robots Hacked 6 | . . . . . 6 Non-combat 6 | . . . . . 6 Combat . | . . . . . . Robot Hacks Applied 6 | . . . . . 6 parse_system 3 | . . . . . 3 no_distress 1 | . . . . . 1 find_chute 1 | . . . . . 1 find_recycling 1 | . . . . . 1 Relay Couplers Released . | . . . . . . Fabnet Peak Effective % . | . . . . . . Robots Rewired . | . . . . . . Allies Hacked . | . . . . . . Hacks Repelled . | . . . . . . Allies | -11 -10 -9 -8 -7 -6 -------- Run | Yrd Mat Mat Mat Fac Fac Total Allies . | . . . . . . Largest Group . | . . . . . . Highest-Rated Group . | . . . . . . Highest-Rated Ally . | . . . . . . Total Orders . | . . . . . . Ally Attacks . | . . . . . . Total Damage . | . . . . . . Kills . | . . . . . . Allies Corrupted . | . . . . . . Allies Melted . | . . . . . . Intel | -11 -10 -9 -8 -7 -6 ------- Run | Yrd Mat Mat Mat Fac Fac Active Infowar (turns) 2558 | . 121 988 84 . 1365 Terrain 2558 | . 121 988 84 . 1365 Robot Analysis Total . | . . . . . . Derelict Logs Recovered . | . . . . . . Drone Launches . | . . . . . . Drone Recoveries . | . . . . . . Exploration | -11 -10 -9 -8 -7 -6 ------------- Run | Yrd Mat Mat Mat Fac Fac Turns Passed 8346 | 108 603 988 1168 2669 2810 Spaces Moved 3527 | 83 343 557 591 973 980 Core 16 | 16 . . . . . Treads 76 | . . . 76 . . Legs 2651 | 60 343 557 316 395 980 Wheels 7 | 7 . . . . . Hover 777 | . . . 199 578 . Flight . | . . . . . . Fastest Speed 50 | 50 120 120 52 112 190 Average Speed 185 | 103 120 122 147 234 226 Slowest Speed 470 | 120 120 190 260 420 470 Overloaded Moves . | . . . . . . Propulsion Burnouts . | . . . . . . Robots Hopped . | . . . . . . Potential Cave-ins . | . . . . . . Cave-ins Triggered . | . . . . . . Exploration Rate (%) 36 | 8 52 49 51 26 32 Regions Visited 5 Branch Regions . Pre-discovered Areas . | . . . . . . Known Exits Taken . | . . . . . . Unknown Exits Taken 5 | 1 1 1 1 1 . Scrap Searched . | . . . . . . Spaces Dug . | . . . . . . Terrain Destroyed 262 | . . . 41 100 121 Melee . | . . . . . . Projectile 22 | . . . 2 4 16 AOE 240 | . . . 39 96 105 Terrain Rammed . | . . . . . . Walls Destroyed . | . . . . . . Machines Disabled . | . . . . . . Actions | -11 -10 -9 -8 -7 -6 --------- Run | Yrd Mat Mat Mat Fac Fac Total 4837 | 101 505 799 792 1219 1421 Wait 693 | . 102 172 93 68 258 Move 3522 | 82 342 556 590 972 980 Hop . | . . . . . . Pick Up 143 | 9 18 13 19 54 30 Fast Attach 15 | . 1 1 3 . 10 Attach 87 | 6 1 2 16 30 32 Detach 4 | . . . 1 . 3 Swap 51 | 2 9 7 10 13 10 Drop 69 | . 13 16 10 14 16 Fire 241 | 2 19 32 50 68 70 Melee 7 | . . . . . 7 Ram . | . . . . . . Kick . | . . . . . . Crush . | . . . . . . Escape Stasis 5 | . . . . . 5 Rewire . | . . . . . . Trap . | . . . . . . Miscellaneous . | . . . . . . Route ------- -11/Scrapyard -10/Materials (discovered 3 exits: *Mat x2 / [*Min]) -9/Materials -8/Materials -7/Factory -6/Factory (discovered 1 exit: [*Ext]) History --------- Turn | Location | Event 2 | -11/Scrapyard | Met Revision 17 79 | -11/Scrapyard | Discovered new exit (range 8) 109 | -11/Scrapyard | Entered Materials 309 | -10/Materials | Build established: Mutant 422 | -10/Materials | Discovered new exit (range 18) 522 | -10/Materials | System corruption reached 10% 570 | -10/Materials | Discovered new exit (range 8) 619 | -10/Materials | Discovered new exit (range 14) 712 | -10/Materials | Entered another Materials area 712 | -9/Materials | Evolved 2 slots: Propulsion x1, Weapon x1 1058 | -9/Materials | Build established: Scavenger-Skirmisher 1691 | -9/Materials | Discovered new exit (range 3) 1700 | -9/Materials | Entered another Materials area 1700 | -8/Materials | Evolved 2 slots: Utility x1, Weapon x1 1829 | -8/Materials | Destroyed 8 combat bots 2088 | -8/Materials | Build established: Scavenger-Gunner 2461 | -8/Materials | Lost 6 parts (2n4w) 2819 | -8/Materials | Repaired Ion Cannon 2864 | -8/Materials | Discovered new exit (range 10) 2868 | -8/Materials | Entered Factory 2868 | -7/Factory | Evolved 2 slots: Power x1, Utility x1 3119 | -7/Factory | Build established: Gunner 4055 | -7/Factory | Core integrity fell below 50% 4088 | -7/Factory | Lost 3 parts (3w) 4101 | -7/Factory | System corruption reached 10% 4426 | -7/Factory | Lost 3 parts (2n1u) 4527 | -7/Factory | Core integrity fell below 20% 4557 | -7/Factory | Lost 3 parts (1u2w) 5480 | -7/Factory | Discovered new exit (range 6) 5537 | -7/Factory | Entered another Factory area 5537 | -6/Factory | Evolved 2 slots: Propulsion x1, Utility x1 5834 | -6/Factory | Fabricated Imp. Plasma Cutter (x2) 5958 | -6/Factory | Fabricated Mass Driver (x2) 6022 | -6/Factory | Build established: Scavenger-Gunner 6555 | -6/Factory | Discovered new exit (range 14) 6675 | -6/Factory | Lost 6 parts (2p2n2w) 6856 | -6/Factory | Lost 5 parts (2p1n2w) 7181 | -6/Factory | Lost 3 parts (2n1w) 7626 | -6/Factory | Build established: Scavenger-Skirmisher 8214 | -6/Factory | Build established: Scavenger-Gunner 8317 | -6/Factory | Spotted B-75 Beast 8321 | -6/Factory | Core integrity fell below 50% 8342 | -6/Factory | Core integrity fell below 20% 8347 | -6/Factory | Destroyed by B-75 Beast with Heavy Machine Gun Last Messages --------------- 08335_ U-05 Engineer lays Concrete. 08337_ Aluminum Leg destroyed. 08338_ U-05 Engineer lays Concrete. 08338_ Nuclear Core destroyed. 08338_ U-05 Engineer lays Concrete. 08342_ The unstable cave ceiling collapses. 08342_ Thermic Laser destroyed. 08342_ U-05 Engineer lays Concrete. 08343_ Mic. Nuclear Core destroyed. 08344_ The unstable cave ceiling collapses. 08344_ Carbon-fiber Leg destroyed. 08344_ Plasma Rifle destroyed. 08344_ Prc. Rocket Launcher destroyed. 08344_ Gauss Rifle destroyed. 08344_ Knocked back. 08344_ U-05 Engineer lays Concrete. 08345_ Overheating: System interference. 08345_ Imp. Cryofiber Web temporarily disabled. 08345_ U-05 Engineer lays Concrete. 08347_ U-05 Engineer destroyed. Map ----- +----------------------------------------------------+ | ??????????????# = #?# #????????????# | | ??????????????# #?# #????????????# | | ???????############+#####?# ?????????? | | ???? #??# ??????? ? ## | | ???????????##### #??# "" "??????? ??? | | ???????????#####+##+## #??# " "?? ??? ???? | | ???????????# # #??# "F ""?????????? | | ???????????# ! # #??# "" ??????????? | | ???????????# # #### ? "??????????? | | ???????????# # ????????????? | | ???????????# # ????????????? | | ???????????# """ # // ???????????? | | ???????????# """"" + // ! ""?????????????? | | ???????????# """"" # // ""?????????????? | | ???????????########### """ ???????????? | | ??????????????######## ??????????? | | ??????????????# ! ??????????? | | ??????????????# ^ u g ??????????? | | ??????????????# """"" g%g ??????????? | | ??????????????+ Y g;;###????????????? | | ??????????!! ?# ;#???????????????? | | ??????????!! # ;#???????????????? | | ?????????? ; g ;#???????????? ## | | ?????????? ; #???????????? | | ?????????##### #???????????? | | ???????? * @% #???????????? | | ???????? !%| #???????????? | | ???????? ; =%* =#???????????? | | ???????? ; !=! ! #????????????? ## | | ?????????"" # #????????????????? | | ??????????????# ?????????????? | | ???????????? ??????????? | | ?????????? ???????????? | | ??????????" ???????????? | | ??????????" BB ] ???????????? | | ??????????? # BB ######????????????? | | ??????????? # #?????????????????? | | ??????????????# +?????????????????? | | ??????????????? #####?????????????????? | | ????????????????? #?????????????????????? | | ????????????????????## #?????????????????????? | | ?????????????????????#^ #?????????????????????? | | ?????????????????????? ^??????????????????????? | | ?????????????????????????????????????????????????? | | ?????????????????????????????????????????????????? | | ?????????????????????????????????????????????????? | | ?????????????????????????????????????????????????? | | ?????????????????????????????????????????????????? | | ?????????????????????????????????????????????????? | | ?????????????????????????????????????????????????? | +----------------------------------------------------+ Best States ------------- Heat Dissipation 65 Energy Generation 34 Energy Capacity 450 Matter Stores 550 Matter Capacity 550 Sight Range 16 Terrain Scan Range 16 Terrain Scan Density 10 Additional Mass Support 9 Base Temperature (-) 150 Propulsion Shielding 66 Evasion (%) 55 Targeting Accuracy 8 Recoil Reduction 1 Kinecelleration 30 Offensive Hacking 10 Defensive Hacking 12 Item Schematics ----------------- None Robot Schematics ------------------ None Fabricated ------------ Imp. Plasma Cutter | x2 | -6/Factory | Preloaded Mass Driver | x2 | -6/Factory | Preloaded Repaired ---------- Ion Cannon | 5% | -8/Materials Alien Tech Used ----------------- None Achievements -------------- Close Call Just What I Needed Party Time Please Form A Line Safety First System Compromised Challenges ------------ None Game ------ Seed ExpertLightCannon Manual? 0 Play Time 01:20:06 Cumulative 5.8 hours Start 2025.08.30 @ 21:31:00 End 2025.09.24 @ 16:50:59 Sessions 6 Manual Loads 0 Difficulty Rogue Special Mode None Game No. 12 Rogue 12 Adventurer 0 Explorer 0 Win Type - Total 0 Types 0/0/0/0/0/0/0/0/0/0 Lore% 6 Gallery% 13 Achievement% 12 Wizard Run 0 Options --------- Layout 1 ASCII 0 Keyboard 0 Movement Mouse Keybinds 0 Fullscreen 1 Font 24/Smallcaps Map View 50x35 Zoom Use 0% Tactical HUD 1 Map Filters NONE Filters NONE Steam 1 RUN: 36644d22-87fa-4d04-9dae-bfd802cf1196